[Event "December 5 Early 2023"]
[Site "https://www.chess.com"]
[Date "2023.12.05"]
[Round "8"]
[White "Goldin, Roman"]
[Black "Osmak, Yuliia"]
[Result "0-1"]
[Board "103"]
[TimeControl "180+1"]
[WhiteFideId "2803860"]
[BlackFideId "14101602"]
[WhiteElo "2437"]
[BlackElo "2541"]
[WhiteTeam "ISR"]
[BlackTeam "UKR"]
[WhiteClock "0:00:00"]
[BlackClock "0:00:05"]

1. e4 {[%clk 0:02:59]}  c5 {[%clk 0:02:58]} 2. Nf3 {[%clk 0:02:58]}  Nc6 {[%clk 0:02:58]} 3. c3 {[%clk 0:02:57]}  Nf6 {[%clk 0:02:55]} 4. e5 {[%clk 0:02:57]}  Nd5 {[%clk 0:02:55]} 5. g3 {[%clk 0:02:57]}  d6 {[%clk 0:02:51]} 6. exd6 {[%clk 0:02:56]}  Qxd6 {[%clk 0:02:52]} 7. Bg2 {[%clk 0:02:55]}  g6 {[%clk 0:02:52]} 8. O-O {[%clk 0:02:55]}  Bg7 {[%clk 0:02:52]} 9. Re1 {[%clk 0:02:56]}  O-O {[%clk 0:02:51]} 10. d3 {[%clk 0:02:56]}  Bg4 {[%clk 0:02:44]} 11. Na3 {[%clk 0:02:55]}  Rad8 {[%clk 0:02:41]} 12. Nc4 {[%clk 0:02:54]}  Qd7 {[%clk 0:02:40]} 13. a4 {[%clk 0:02:47]}  e5 {[%clk 0:02:30]} 14. Qb3 {[%clk 0:02:40]}  Rfe8 {[%clk 0:02:25]} 15. Bg5 {[%clk 0:02:24]}  f6 {[%clk 0:02:11]} 16. Bd2 {[%clk 0:02:19]}  Kh8 {[%clk 0:02:08]} 17. h4 {[%clk 0:02:11]}  b6 {[%clk 0:02:04]} 18. a5 {[%clk 0:02:06]}  Qf5 {[%clk 0:01:54]} 19. Nh2 {[%clk 0:02:04]}  Bh3 {[%clk 0:01:44]} 20. axb6 {[%clk 0:01:49]}  Bxg2 {[%clk 0:01:44]} 21. Kxg2 {[%clk 0:01:48]}  axb6 {[%clk 0:01:40]} 22. Nxb6 {[%clk 0:01:34]}  Qxd3 {[%clk 0:01:28]} 23. Nxd5 {[%clk 0:01:23]}  Rxd5 {[%clk 0:01:06]} 24. Be3 {[%clk 0:01:18]}  c4 {[%clk 0:01:02]} 25. Qa4 {[%clk 0:01:17]}  Rc8 {[%clk 0:00:29]} 26. Rad1 {[%clk 0:01:05]}  Qe4+ {[%clk 0:00:28]} 27. f3 {[%clk 0:01:05]}  Rxd1 {[%clk 0:00:27]} 28. fxe4 {[%clk 0:00:51]}  Rxe1 {[%clk 0:00:26]} 29. Qa6 {[%clk 0:00:48]}  Ne7 {[%clk 0:00:20]} 30. Bf2 {[%clk 0:00:43]}  Rd1 {[%clk 0:00:18]} 31. Qe6 {[%clk 0:00:39]}  Re8 {[%clk 0:00:11]} 32. Ng4 {[%clk 0:00:36]}  Rd2 {[%clk 0:00:08]} 33. Nxf6 {[%clk 0:00:35]}  Rf8 {[%clk 0:00:08]} 34. Ng4 {[%clk 0:00:30]}  Ng8 {[%clk 0:00:08]} 35. Kh3 {[%clk 0:00:05]}  h5 {[%clk 0:00:07]} 36. Be3 {[%clk 0:00:03]}  hxg4+ {[%clk 0:00:07]} 37. Qxg4 {[%clk 0:00:03]}  Rxb2 {[%clk 0:00:06]} 38. Qxg6 {[%clk 0:00:03]}  Rb7 {[%clk 0:00:06]} 39. Qh5+ {[%clk 0:00:03]}  Nh6 {[%clk 0:00:06]} 40. Bxh6 {[%clk 0:00:03]}  Kg8 {[%clk 0:00:05]} 41. Bxg7 {[%clk 0:00:03]}  Rxg7 {[%clk 0:00:06]} 42. Qxe5 {[%clk 0:00:03]}  Rf3 {[%clk 0:00:06]} 43. Qe6+ {[%clk 0:00:02]}  Kh7 {[%clk 0:00:06]} 44. Kh2 {[%clk 0:00:01]}  Rgxg3 {[%clk 0:00:06]} 45. Qe7+ {[%clk 0:00:00]}  Rg7 {[%clk 0:00:05]} 0-1

[Event "December 5 Early 2023"]
[Site "https://www.chess.com"]
[Date "2023.12.05"]
[Round "8"]
[White "Baziuk, Vladyslav"]
[Black "Kiremitciyan, Ari"]
[Result "0-1"]
[Board "104"]
[TimeControl "180+1"]
[WhiteFideId "34107940"]
[BlackFideId "6373445"]
[WhiteElo "2528"]
[BlackElo "2414"]
[WhiteTeam "UKR"]
[BlackTeam "TUR"]
[WhiteClock "0:00:17"]
[BlackClock "0:00:03"]

1. e4 {[%clk 0:02:58]}  c6 {[%clk 0:03:00]} 2. Nc3 {[%clk 0:02:58]}  d5 {[%clk 0:03:00]} 3. Nf3 {[%clk 0:02:59]}  dxe4 {[%clk 0:02:59]} 4. Nxe4 {[%clk 0:03:00]}  Nf6 {[%clk 0:03:00]} 5. Qe2 {[%clk 0:03:00]}  Nxe4 {[%clk 0:02:59]} 6. Qxe4 {[%clk 0:03:01]}  Qd5 {[%clk 0:03:00]} 7. Qf4 {[%clk 0:02:57]}  Qf5 {[%clk 0:02:57]} 8. Qe3 {[%clk 0:02:49]}  Qe6 {[%clk 0:02:56]} 9. d4 {[%clk 0:02:45]}  g6 {[%clk 0:02:45]} 10. Bd3 {[%clk 0:02:30]}  Bg7 {[%clk 0:02:44]} 11. O-O {[%clk 0:02:30]}  Qxe3 {[%clk 0:02:44]} 12. Bxe3 {[%clk 0:02:28]}  Nd7 {[%clk 0:02:39]} 13. Rfe1 {[%clk 0:02:27]}  O-O {[%clk 0:02:37]} 14. h3 {[%clk 0:02:27]}  e6 {[%clk 0:02:37]} 15. c4 {[%clk 0:02:27]}  b6 {[%clk 0:02:33]} 16. Rad1 {[%clk 0:02:26]}  Bb7 {[%clk 0:02:31]} 17. b3 {[%clk 0:02:26]}  c5 {[%clk 0:02:26]} 18. dxc5 {[%clk 0:02:07]}  Nxc5 {[%clk 0:02:27]} 19. Bxc5 {[%clk 0:02:01]}  bxc5 {[%clk 0:02:28]} 20. Be4 {[%clk 0:01:59]}  Bxe4 {[%clk 0:02:26]} 21. Rxe4 {[%clk 0:02:00]}  Rfd8 {[%clk 0:02:26]} 22. Ree1 {[%clk 0:01:57]}  Bc3 {[%clk 0:02:21]} 23. Rxd8+ {[%clk 0:01:42]}  Rxd8 {[%clk 0:02:19]} 24. Rc1 {[%clk 0:01:43]}  Bf6 {[%clk 0:02:13]} 25. Kf1 {[%clk 0:01:43]}  Kf8 {[%clk 0:02:07]} 26. Ke2 {[%clk 0:01:43]}  Ke7 {[%clk 0:02:08]} 27. Rd1 {[%clk 0:01:25]}  Rb8 {[%clk 0:02:08]} 28. Nd2 {[%clk 0:01:21]}  Bd4 {[%clk 0:02:05]} 29. Nf3 {[%clk 0:01:21]}  e5 {[%clk 0:02:04]} 30. Nxd4 {[%clk 0:01:17]}  exd4 {[%clk 0:02:00]} 31. Kd3 {[%clk 0:01:18]}  a5 {[%clk 0:01:55]} 32. Ke4 {[%clk 0:01:14]}  Kd6 {[%clk 0:01:55]} 33. Kd3 {[%clk 0:01:01]}  Re8 {[%clk 0:01:37]} 34. g4 {[%clk 0:00:57]}  Re5 {[%clk 0:01:31]} 35. a3 {[%clk 0:00:53]}  h5 {[%clk 0:01:24]} 36. b4 {[%clk 0:00:51]}  axb4 {[%clk 0:01:20]} 37. axb4 {[%clk 0:00:49]}  hxg4 {[%clk 0:01:20]} 38. hxg4 {[%clk 0:00:48]}  Rg5 {[%clk 0:01:18]} 39. bxc5+ {[%clk 0:00:46]}  Kxc5 {[%clk 0:01:17]} 40. f3 {[%clk 0:00:42]}  f5 {[%clk 0:01:17]} 41. Rc1 {[%clk 0:00:42]}  fxg4 {[%clk 0:01:16]} 42. Rg1 {[%clk 0:00:40]}  g3 {[%clk 0:01:13]} 43. f4 {[%clk 0:00:40]}  Rg4 {[%clk 0:01:14]} 44. Ke4 {[%clk 0:00:39]}  Kxc4 {[%clk 0:01:12]} 45. Kf3 {[%clk 0:00:36]}  Rh4 {[%clk 0:01:11]} 46. Rxg3 {[%clk 0:00:37]}  d3 {[%clk 0:00:45]} 47. Rxg6 {[%clk 0:00:35]}  Kc3 {[%clk 0:00:40]} 48. f5 {[%clk 0:00:33]}  Rd4 {[%clk 0:00:31]} 49. Rc6+ {[%clk 0:00:29]}  Kb3 {[%clk 0:00:21]} 50. Ke3 {[%clk 0:00:29]}  d2 {[%clk 0:00:18]} 51. Kxd4 {[%clk 0:00:28]}  d1=Q+ {[%clk 0:00:18]} 52. Ke5 {[%clk 0:00:29]}  Qe2+ {[%clk 0:00:14]} 53. Kf6 {[%clk 0:00:27]}  Qb2+ {[%clk 0:00:13]} 54. Kf7 {[%clk 0:00:26]}  Qe5 {[%clk 0:00:12]} 55. f6 {[%clk 0:00:23]}  Qd5+ {[%clk 0:00:12]} 56. Re6 {[%clk 0:00:23]}  Kc4 {[%clk 0:00:11]} 57. Ke7 {[%clk 0:00:23]}  Qb7+ {[%clk 0:00:09]} 58. Kf8 {[%clk 0:00:23]}  Kd5 {[%clk 0:00:08]} 59. Re7 {[%clk 0:00:22]}  Qc8+ {[%clk 0:00:06]} 60. Re8 {[%clk 0:00:22]}  Qc5+ {[%clk 0:00:06]} 61. Kg7 {[%clk 0:00:21]}  Qc7+ {[%clk 0:00:05]} 62. f7 {[%clk 0:00:20]}  Qg3+ {[%clk 0:00:05]} 63. Kf8 {[%clk 0:00:17]}  Qd6+ {[%clk 0:00:04]} 64. Kg8 {[%clk 0:00:17]}  Qg6+ {[%clk 0:00:04]} 65. Kf8 {[%clk 0:00:17]}  Qh6+ {[%clk 0:00:02]} 66. Ke7 {[%clk 0:00:17]}  Qd6# {[%clk 0:00:03]} 0-1

[Event "December 5 Early 2023"]
[Site "https://www.chess.com"]
[Date "2023.12.05"]
[Round "8"]
[White "Baches Garcia, Guillermo"]
[Black "Buchenau, Frank"]
[Result "0-1"]
[Board "105"]
[TimeControl "180+1"]
[WhiteFideId "2209764"]
[BlackFideId "4604350"]
[WhiteElo "2525"]
[BlackElo "2390"]
[WhiteTeam "ESP"]
[BlackTeam "GER"]
[WhiteClock "0:00:08"]
[BlackClock "0:00:09"]

1. d4 {[%clk 0:03:00]}  e6 {[%clk 0:02:57]} 2. Nf3 {[%clk 0:03:01]}  Nf6 {[%clk 0:02:56]} 3. Bg5 {[%clk 0:03:01]}  c5 {[%clk 0:02:56]} 4. e3 {[%clk 0:03:00]}  Be7 {[%clk 0:02:56]} 5. Nbd2 {[%clk 0:03:00]}  b6 {[%clk 0:02:56]} 6. Bd3 {[%clk 0:02:59]}  Bb7 {[%clk 0:02:56]} 7. Qe2 {[%clk 0:02:58]}  cxd4 {[%clk 0:02:56]} 8. exd4 {[%clk 0:02:57]}  Nd5 {[%clk 0:02:56]} 9. Bxe7 {[%clk 0:02:49]}  Qxe7 {[%clk 0:02:57]} 10. g3 {[%clk 0:02:43]}  Nb4 {[%clk 0:02:56]} 11. Be4 {[%clk 0:02:38]}  d5 {[%clk 0:02:54]} 12. Bd3 {[%clk 0:02:38]}  Nxd3+ {[%clk 0:02:50]} 13. Qxd3 {[%clk 0:02:38]}  Ba6 {[%clk 0:02:50]} 14. Qe3 {[%clk 0:02:37]}  Nc6 {[%clk 0:02:49]} 15. c3 {[%clk 0:02:36]}  Rc8 {[%clk 0:02:42]} 16. Ne5 {[%clk 0:02:30]}  Nxe5 {[%clk 0:02:38]} 17. dxe5 {[%clk 0:02:25]}  Qc5 {[%clk 0:02:26]} 18. Nb3 {[%clk 0:02:04]}  Qxe3+ {[%clk 0:02:25]} 19. fxe3 {[%clk 0:02:05]}  f6 {[%clk 0:02:01]} 20. exf6 {[%clk 0:01:59]}  gxf6 {[%clk 0:02:02]} 21. Nd4 {[%clk 0:01:57]}  Ke7 {[%clk 0:01:58]} 22. O-O-O {[%clk 0:01:53]}  h5 {[%clk 0:01:55]} 23. Rhe1 {[%clk 0:01:48]}  h4 {[%clk 0:01:51]} 24. e4 {[%clk 0:01:48]}  dxe4 {[%clk 0:01:42]} 25. Rxe4 {[%clk 0:01:43]}  e5 {[%clk 0:01:35]} 26. Nf5+ {[%clk 0:01:39]}  Ke6 {[%clk 0:01:27]} 27. Nxh4 {[%clk 0:01:18]}  Bb7 {[%clk 0:00:54]} 28. Re3 {[%clk 0:01:14]}  Rcd8 {[%clk 0:00:49]} 29. Rf1 {[%clk 0:01:04]}  Rd6 {[%clk 0:00:39]} 30. Rf2 {[%clk 0:00:55]}  Rhd8 {[%clk 0:00:38]} 31. Kc2 {[%clk 0:00:52]}  Bc6 {[%clk 0:00:36]} 32. Nf5 {[%clk 0:00:47]}  Rd1 {[%clk 0:00:34]} 33. Nd4+ {[%clk 0:00:45]}  R8xd4 {[%clk 0:00:26]} 34. cxd4 {[%clk 0:00:44]}  Rxd4 {[%clk 0:00:26]} 35. Rd2 {[%clk 0:00:41]}  Be4+ {[%clk 0:00:22]} 36. Kc3 {[%clk 0:00:30]}  Kd5 {[%clk 0:00:19]} 37. h4 {[%clk 0:00:21]}  Kc5 {[%clk 0:00:19]} 38. b3 {[%clk 0:00:19]}  a5 {[%clk 0:00:15]} 39. h5 {[%clk 0:00:19]}  b5 {[%clk 0:00:14]} 40. Ree2 {[%clk 0:00:16]}  b4+ {[%clk 0:00:14]} 41. Kb2 {[%clk 0:00:16]}  Bd3 {[%clk 0:00:14]} 42. Re3 {[%clk 0:00:16]}  e4 {[%clk 0:00:13]} 43. h6 {[%clk 0:00:15]}  f5 {[%clk 0:00:11]} 44. h7 {[%clk 0:00:15]}  Rd8 {[%clk 0:00:11]} 45. Rh2 {[%clk 0:00:15]}  Rh8 {[%clk 0:00:11]} 46. g4 {[%clk 0:00:15]}  Kd4 {[%clk 0:00:11]} 47. Rg3 {[%clk 0:00:14]}  f4 {[%clk 0:00:11]} 48. Rg1 {[%clk 0:00:15]}  f3 {[%clk 0:00:11]} 49. g5 {[%clk 0:00:15]}  e3 {[%clk 0:00:11]} 50. g6 {[%clk 0:00:15]}  Bxg6 {[%clk 0:00:11]} 51. Rxg6 {[%clk 0:00:14]}  f2 {[%clk 0:00:11]} 52. Rg8 {[%clk 0:00:12]}  Rxh7 {[%clk 0:00:10]} 53. Rxh7 {[%clk 0:00:11]}  f1=Q {[%clk 0:00:10]} 54. Rd7+ {[%clk 0:00:11]}  Kc5 {[%clk 0:00:08]} 55. Rc8+ {[%clk 0:00:11]}  Kb6 {[%clk 0:00:09]} 56. Rcd8 {[%clk 0:00:07]}  Qf6+ {[%clk 0:00:08]} 57. Kc1 {[%clk 0:00:06]}  Qf1+ {[%clk 0:00:07]} 58. Kc2 {[%clk 0:00:06]}  Qf5+ {[%clk 0:00:07]} 59. Kc1 {[%clk 0:00:07]}  Qe4 {[%clk 0:00:06]} 60. Rd6+ {[%clk 0:00:06]}  Kc7 {[%clk 0:00:06]} 61. R6d7+ {[%clk 0:00:06]}  Kc6 {[%clk 0:00:06]} 62. Rd4 {[%clk 0:00:06]}  Qh1+ {[%clk 0:00:05]} 63. Kb2 {[%clk 0:00:06]}  Qg2+ {[%clk 0:00:04]} 64. Kb1 {[%clk 0:00:06]}  e2 {[%clk 0:00:04]} 65. Rc4+ {[%clk 0:00:05]}  Kb7 {[%clk 0:00:04]} 66. Rd7+ {[%clk 0:00:05]}  Kb8 {[%clk 0:00:03]} 67. Rd8+ {[%clk 0:00:04]}  Kb7 {[%clk 0:00:04]} 68. Rd7+ {[%clk 0:00:05]}  Kb6 {[%clk 0:00:04]} 69. Rd6+ {[%clk 0:00:05]}  Kb5 {[%clk 0:00:04]} 70. Re6 {[%clk 0:00:05]}  Qf1+ {[%clk 0:00:02]} 71. Kb2 {[%clk 0:00:05]}  e1=Q {[%clk 0:00:02]} 72. Rxe1 {[%clk 0:00:06]}  Qxe1 {[%clk 0:00:02]} 73. Rc2 {[%clk 0:00:07]}  Qe5+ {[%clk 0:00:02]} 74. Kb1 {[%clk 0:00:07]}  Qd4 {[%clk 0:00:02]} 75. Kc1 {[%clk 0:00:06]}  Qd3 {[%clk 0:00:03]} 76. Kb1 {[%clk 0:00:06]}  Qd1+ {[%clk 0:00:02]} 77. Kb2 {[%clk 0:00:07]}  Qd3 {[%clk 0:00:03]} 78. Kb1 {[%clk 0:00:07]}  Qd4 {[%clk 0:00:04]} 79. Kc1 {[%clk 0:00:07]}  Qe4 {[%clk 0:00:04]} 80. Kb1 {[%clk 0:00:07]}  Qh1+ {[%clk 0:00:04]} 81. Kb2 {[%clk 0:00:07]}  Qh7 {[%clk 0:00:05]} 82. Kb1 {[%clk 0:00:08]}  Qg7 {[%clk 0:00:06]} 83. Kc1 {[%clk 0:00:07]}  Qd4 {[%clk 0:00:07]} 84. Kb1 {[%clk 0:00:08]}  a4 {[%clk 0:00:07]} 85. bxa4+ {[%clk 0:00:07]}  Kxa4 {[%clk 0:00:07]} 86. Kc1 {[%clk 0:00:07]}  Ka3 {[%clk 0:00:07]} 87. Kb1 {[%clk 0:00:07]}  Qe3 {[%clk 0:00:07]} 88. Rc1 {[%clk 0:00:07]}  Qd2 {[%clk 0:00:07]} 89. Rc2 {[%clk 0:00:07]}  Qd1+ {[%clk 0:00:08]} 90. Rc1 {[%clk 0:00:08]}  Qd3+ {[%clk 0:00:08]} 91. Rc2 {[%clk 0:00:08]}  Qe4 {[%clk 0:00:09]} 92. Kc1 {[%clk 0:00:08]}  Qe1# {[%clk 0:00:09]} 0-1

[Event "December 5 Early 2023"]
[Site "https://www.chess.com"]
[Date "2023.12.05"]
[Round "8"]
[White "Pakleza, Zbigniew"]
[Black "Can, Melih Kaan"]
[Result "1-0"]
[Board "110"]
[TimeControl "180+1"]
[WhiteFideId "1119290"]
[BlackFideId "6317383"]
[WhiteElo "2681"]
[BlackElo "2431"]
[WhiteTeam "POL"]
[BlackTeam "TUR"]
[WhiteClock "0:02:39"]
[BlackClock "0:00:51"]

1. d4 {[%clk 0:03:00]}  Nf6 {[%clk 0:02:55]} 2. Nf3 {[%clk 0:03:01]}  d5 {[%clk 0:02:52]} 3. Bf4 {[%clk 0:03:00]}  e6 {[%clk 0:02:19]} 4. Nbd2 {[%clk 0:03:00]}  Be7 {[%clk 0:02:10]} 5. e3 {[%clk 0:03:00]}  c6 {[%clk 0:02:10]} 6. h3 {[%clk 0:03:00]}  Nbd7 {[%clk 0:02:11]} 7. Bd3 {[%clk 0:02:59]}  b6 {[%clk 0:02:11]} 8. c4 {[%clk 0:02:57]}  Bb7 {[%clk 0:02:11]} 9. O-O {[%clk 0:02:57]}  O-O {[%clk 0:02:11]} 10. cxd5 {[%clk 0:02:58]}  cxd5 {[%clk 0:02:11]} 11. Qa4 {[%clk 0:02:54]}  Ne4 {[%clk 0:01:58]} 12. Rfc1 {[%clk 0:02:51]}  g5 {[%clk 0:01:53]} 13. Bc7 {[%clk 0:02:47]}  Qe8 {[%clk 0:01:48]} 14. Bb5 {[%clk 0:02:45]}  Bc8 {[%clk 0:01:12]} 15. Nxe4 {[%clk 0:02:43]}  dxe4 {[%clk 0:01:11]} 16. Ne5 {[%clk 0:02:43]}  a6 {[%clk 0:01:03]} 17. Bxd7 {[%clk 0:02:39]}  Bxd7 {[%clk 0:01:01]} 18. Qxd7 {[%clk 0:02:40]}  Qxd7 {[%clk 0:00:53]} 19. Nxd7 {[%clk 0:02:41]}  Rfc8 {[%clk 0:00:53]} 20. Nxb6 {[%clk 0:02:40]}  Re8 {[%clk 0:00:52]} 21. Nxa8 {[%clk 0:02:39]}  Rxa8 {[%clk 0:00:51]} 1-0

[Event "December 5 Early 2023"]
[Site "https://www.chess.com"]
[Date "2023.12.05"]
[Round "8"]
[White "Gubajdullin, Alexei"]
[Black "Kovalyov, Eduard"]
[Result "1-0"]
[Board "111"]
[TimeControl "180+1"]
[WhiteFideId "4141202"]
[BlackFideId "14118033"]
[WhiteElo "2616"]
[BlackElo "2425"]
[WhiteTeam "RUS"]
[BlackTeam "UKR"]
[WhiteClock "0:00:13"]
[BlackClock "0:00:04"]

1. d4 {[%clk 0:03:00]}  Nf6 {[%clk 0:02:58]} 2. Nf3 {[%clk 0:02:59]}  g6 {[%clk 0:02:58]} 3. Bf4 {[%clk 0:02:59]}  Bg7 {[%clk 0:02:58]} 4. e3 {[%clk 0:02:59]}  O-O {[%clk 0:02:58]} 5. Be2 {[%clk 0:02:59]}  d6 {[%clk 0:02:59]} 6. O-O {[%clk 0:02:59]}  c5 {[%clk 0:02:58]} 7. c3 {[%clk 0:02:56]}  Qb6 {[%clk 0:02:52]} 8. Qb3 {[%clk 0:02:55]}  Be6 {[%clk 0:02:52]} 9. Qxb6 {[%clk 0:02:54]}  axb6 {[%clk 0:02:52]} 10. a3 {[%clk 0:02:55]}  Bd5 {[%clk 0:02:43]} 11. h3 {[%clk 0:02:53]}  Nbd7 {[%clk 0:02:40]} 12. Nbd2 {[%clk 0:02:49]}  cxd4 {[%clk 0:02:38]} 13. exd4 {[%clk 0:02:48]}  Rfe8 {[%clk 0:02:36]} 14. Rfe1 {[%clk 0:02:44]}  e5 {[%clk 0:02:36]} 15. dxe5 {[%clk 0:02:28]}  dxe5 {[%clk 0:02:37]} 16. Be3 {[%clk 0:02:28]}  Bc6 {[%clk 0:02:35]} 17. Nc4 {[%clk 0:02:26]}  Nd5 {[%clk 0:02:35]} 18. Bd2 {[%clk 0:02:13]}  f5 {[%clk 0:02:31]} 19. Ne3 {[%clk 0:01:57]}  Nf4 {[%clk 0:02:23]} 20. Bc4+ {[%clk 0:01:51]}  Kh8 {[%clk 0:02:23]} 21. Ng5 {[%clk 0:01:47]}  h6 {[%clk 0:02:19]} 22. Nf7+ {[%clk 0:01:46]}  Kh7 {[%clk 0:02:19]} 23. Nd6 {[%clk 0:01:45]}  Re7 {[%clk 0:02:17]} 24. h4 {[%clk 0:01:41]}  Rd8 {[%clk 0:01:50]} 25. Nexf5 {[%clk 0:01:38]}  gxf5 {[%clk 0:01:34]} 26. Bxf4 {[%clk 0:01:38]}  Bf6 {[%clk 0:01:14]} 27. Nxf5 {[%clk 0:01:36]}  Ree8 {[%clk 0:01:15]} 28. Bxh6 {[%clk 0:01:33]}  Nc5 {[%clk 0:01:11]} 29. Bf7 {[%clk 0:01:30]}  Rh8 {[%clk 0:01:07]} 30. h5 {[%clk 0:01:29]}  Be4 {[%clk 0:01:03]} 31. Bg6+ {[%clk 0:01:18]}  Kg8 {[%clk 0:01:03]} 32. Be3 {[%clk 0:01:05]}  Bxf5 {[%clk 0:00:51]} 33. Bxf5 {[%clk 0:01:04]}  Rxh5 {[%clk 0:00:51]} 34. Bg6 {[%clk 0:01:04]}  Rh4 {[%clk 0:00:49]} 35. Rad1 {[%clk 0:01:03]}  Kg7 {[%clk 0:00:44]} 36. Rxd8 {[%clk 0:01:00]}  Bxd8 {[%clk 0:00:43]} 37. Bc2 {[%clk 0:00:58]}  Kf6 {[%clk 0:00:37]} 38. Rd1 {[%clk 0:00:57]}  Be7 {[%clk 0:00:34]} 39. b4 {[%clk 0:00:54]}  Ne4 {[%clk 0:00:27]} 40. g3 {[%clk 0:00:50]}  Rg4 {[%clk 0:00:27]} 41. Bxe4 {[%clk 0:00:19]}  Rxe4 {[%clk 0:00:26]} 42. Bxb6 {[%clk 0:00:19]}  Re2 {[%clk 0:00:20]} 43. a4 {[%clk 0:00:18]}  Rc2 {[%clk 0:00:19]} 44. Rd7 {[%clk 0:00:17]}  Rxc3 {[%clk 0:00:16]} 45. Rxb7 {[%clk 0:00:18]}  Rb3 {[%clk 0:00:11]} 46. b5 {[%clk 0:00:17]}  Ke6 {[%clk 0:00:11]} 47. Be3 {[%clk 0:00:17]}  Bb4 {[%clk 0:00:09]} 48. Ra7 {[%clk 0:00:16]}  Bc3 {[%clk 0:00:06]} 49. b6 {[%clk 0:00:14]}  Kd5 {[%clk 0:00:07]} 50. a5 {[%clk 0:00:14]}  Kc6 {[%clk 0:00:07]} 51. a6 {[%clk 0:00:13]}  Bd4 {[%clk 0:00:05]} 52. b7 {[%clk 0:00:11]}  Bxa7 {[%clk 0:00:04]} 53. Bxa7 {[%clk 0:00:11]}  Kc7 {[%clk 0:00:04]} 54. b8=Q+ {[%clk 0:00:10]}  Rxb8 {[%clk 0:00:04]} 55. Bxb8+ {[%clk 0:00:11]}  Kxb8 {[%clk 0:00:05]} 56. Kg2 {[%clk 0:00:12]}  Ka7 {[%clk 0:00:05]} 57. Kf3 {[%clk 0:00:12]}  Kxa6 {[%clk 0:00:04]} 58. Ke4 {[%clk 0:00:13]} 1-0

[Event "December 5 Early 2023"]
[Site "https://www.chess.com"]
[Date "2023.12.05"]
[Round "8"]
[White "Matthes, Aaron"]
[Black "Jaskolka, Tomasz"]
[Result "0-1"]
[Board "114"]
[TimeControl "180+1"]
[WhiteFideId "16227310"]
[BlackFideId "1170791"]
[WhiteElo "2415"]
[BlackElo "2539"]
[WhiteTeam "GER"]
[BlackTeam "POL"]
[WhiteClock "0:00:07"]
[BlackClock "0:01:38"]

1. Nf3 {[%clk 0:03:00]}  f5 {[%clk 0:02:57]} 2. g3 {[%clk 0:03:01]}  Nf6 {[%clk 0:02:57]} 3. Bg2 {[%clk 0:03:01]}  e6 {[%clk 0:02:58]} 4. O-O {[%clk 0:03:01]}  d6 {[%clk 0:02:59]} 5. d3 {[%clk 0:03:00]}  Be7 {[%clk 0:03:00]} 6. Re1 {[%clk 0:03:00]}  O-O {[%clk 0:03:00]} 7. e4 {[%clk 0:03:00]}  fxe4 {[%clk 0:03:01]} 8. dxe4 {[%clk 0:03:01]}  e5 {[%clk 0:03:00]} 9. Nc3 {[%clk 0:03:00]}  c6 {[%clk 0:03:00]} 10. Be3 {[%clk 0:02:53]}  Bg4 {[%clk 0:02:59]} 11. Qd2 {[%clk 0:02:51]}  Nxe4 {[%clk 0:02:52]} 12. Nxe4 {[%clk 0:02:49]}  Bxf3 {[%clk 0:02:52]} 13. Bxf3 {[%clk 0:02:45]}  Rxf3 {[%clk 0:02:52]} 14. Bg5 {[%clk 0:02:34]}  d5 {[%clk 0:02:43]} 15. Bxe7 {[%clk 0:02:15]}  Qxe7 {[%clk 0:02:43]} 16. Ng5 {[%clk 0:02:07]}  Rf5 {[%clk 0:02:43]} 17. h4 {[%clk 0:02:06]}  Nd7 {[%clk 0:02:41]} 18. Qd3 {[%clk 0:02:01]}  Raf8 {[%clk 0:02:19]} 19. g4 {[%clk 0:01:56]}  Rxg5 {[%clk 0:02:20]} 20. hxg5 {[%clk 0:01:56]}  Qxg5 {[%clk 0:02:21]} 21. Re3 {[%clk 0:01:23]}  e4 {[%clk 0:02:16]} 22. Qb3 {[%clk 0:01:19]}  Qxg4+ {[%clk 0:02:06]} 23. Rg3 {[%clk 0:01:18]}  Qf4 {[%clk 0:02:04]} 24. Rf1 {[%clk 0:01:14]}  b5 {[%clk 0:02:00]} 25. Qc3 {[%clk 0:01:11]}  Ne5 {[%clk 0:02:00]} 26. Qd4 {[%clk 0:01:03]}  Nf3+ {[%clk 0:01:53]} 27. Rxf3 {[%clk 0:01:03]}  exf3 {[%clk 0:01:53]} 28. Qxf4 {[%clk 0:01:02]}  Rxf4 {[%clk 0:01:53]} 29. Rd1 {[%clk 0:00:58]}  Kf7 {[%clk 0:01:52]} 30. Kh2 {[%clk 0:00:58]}  g5 {[%clk 0:01:53]} 31. Kg3 {[%clk 0:00:58]}  h5 {[%clk 0:01:53]} 32. Rd3 {[%clk 0:00:55]}  d4 {[%clk 0:01:48]} 33. Ra3 {[%clk 0:00:54]}  c5 {[%clk 0:01:43]} 34. Rxa7+ {[%clk 0:00:52]}  Ke6 {[%clk 0:01:44]} 35. Rb7 {[%clk 0:00:51]}  b4 {[%clk 0:01:43]} 36. a4 {[%clk 0:00:48]}  bxa3 {[%clk 0:01:42]} 37. bxa3 {[%clk 0:00:48]}  c4 {[%clk 0:01:42]} 38. a4 {[%clk 0:00:44]}  d3 {[%clk 0:01:43]} 39. cxd3 {[%clk 0:00:39]}  cxd3 {[%clk 0:01:44]} 40. Rb3 {[%clk 0:00:35]}  Rd4 {[%clk 0:01:41]} 41. Rb1 {[%clk 0:00:25]}  d2 {[%clk 0:01:40]} 42. Rd1 {[%clk 0:00:23]}  g4 {[%clk 0:01:41]} 43. a5 {[%clk 0:00:23]}  Kd5 {[%clk 0:01:39]} 44. a6 {[%clk 0:00:20]}  Kc6 {[%clk 0:01:39]} 45. a7 {[%clk 0:00:18]}  Kb7 {[%clk 0:01:39]} 46. Kh4 {[%clk 0:00:19]}  Rd5 {[%clk 0:01:37]} 47. Ra1 {[%clk 0:00:16]}  Ka8 {[%clk 0:01:37]} 48. Rd1 {[%clk 0:00:10]}  Kxa7 {[%clk 0:01:38]} 49. Kg3 {[%clk 0:00:11]}  Kb6 {[%clk 0:01:38]} 50. Kf4 {[%clk 0:00:11]}  Kc5 {[%clk 0:01:37]} 51. Ke4 {[%clk 0:00:12]}  Rd8 {[%clk 0:01:37]} 52. Ke5 {[%clk 0:00:11]}  Kc4 {[%clk 0:01:38]} 53. Ke4 {[%clk 0:00:07]}  Kc3 {[%clk 0:01:38]} 0-1